{"text_format":"3","workbook":"xlsx","n_sheets":1,"sheets":["st2_protocoldata_subj"],"read":"whole","date_system":"1900"}

{"sheet":"st2_protocoldata_subj","index":0,"n_rows":19,"n_cols":16,"rows_kept":19}
["№","Фамлия","Имя","Отчество","Пол","Дата рождения","Участник с ОВЗ","Класс","Класс участия","Балл","Макс. Балл","Статус","Призер МЭ прошлого года","Учитель","Место работы учителя","Направление, вид практики  по технологии"]
[1,3,4,5,6,7,8,9,10,11,12,13,14,15,16,17]
[1,"Ермолаева","Алиса","Сергеевна","ж","2009-01-15","нет",8,8,5,16,"участник","нет","Галиева И.М.","Муниципальное бюджетное общеобразовательное учреждение \"Средняя общеобразовательная школа №7 г. Лениногорска\" ЛМР и РТ","геология"]
[2,"Ильдебенов","Иван","Александрович","м","2009-01-05","нет",8,8,8,16,"призёр","нет",{"$f":"$N$3","v":"Галиева И.М."},{"$f":"$O$3","v":"Муниципальное бюджетное общеобразовательное учреждение \"Средняя общеобразовательная школа №7 г. Лениногорска\" ЛМР и РТ"},{"$f":"$P$3","v":"геология"}]
[3,"Менжаев","Данил","Ирекович","м","2009-03-05","нет",8,8,9,16,"призёр",{"$f":"$M$4","v":"нет"},{"$f":"$N$4","v":"Галиева И.М."},"Муниципальное бюджетное общеобразовательное учреждение \"Средняя общеобразовательная школа №7 г. Лениногорска\" ЛМР и РТ",{"$f":"$P$4","v":"геология"}]
[4,"Соболева","Полина","Сергеевна","ж","2009-05-18",{"$f":"$G$5","v":"нет"},8,8,7,16,"участник",{"$f":"$M$5","v":"нет"},"Галиева И.М.","Муниципальное бюджетное общеобразовательное учреждение \"Средняя общеобразовательная школа №7 г. Лениногорска\" ЛМР и РТ","геология"]
[5,"Гафиятуллина","Гульназ","Маратовна","ж","2008-02-11","нет",9,9,8,19,{"$f":"$L$6","v":"участник"},"нет","Галиева И.М.","Муниципальное бюджетное общеобразовательное учреждение \"Средняя общеобразовательная школа №7 г. Лениногорска\" ЛМР и РТ","геология"]
[6,"Павлова","Алиса","Евгеньевна","ж","2008-11-07","нет",9,9,9,19,"участник","нет","Галиева И.М.","Муниципальное бюджетное общеобразовательное учреждение \"Средняя общеобразовательная школа №7 г. Лениногорска\" ЛМР и РТ","геология"]
[7,"Хафизов","Альберт","Маратович","м","2008-02-09","нет",9,9,8,19,"участник","нет","Галиева И.М.","Муниципальное бюджетное общеобразовательное учреждение \"Средняя общеобразовательная школа №7 г. Лениногорска\" ЛМР и РТ","геология"]
[8,"Зиатдинов","Марат","Марселевич","м","2008-07-01","нет",9,9,10,19,"призёр","призёр","Галиева И.М.","Муниципальное бюджетное общеобразовательное учреждение \"Средняя общеобразовательная школа №7 г. Лениногорска\" ЛМР и РТ","геология"]
[9,"Мусина","Рената","Ришатовна","ж","2008-02-23","нет",9,9,10,19,"призёр","нет","Галиева И.М.","Муниципальное бюджетное общеобразовательное учреждение \"Средняя общеобразовательная школа №7 г. Лениногорска\" ЛМР и РТ","геология"]
[10,"Галимов","Егор","Русланович","м","2008-02-23","нет",9,9,11,19,{"$f":"$L$11","v":"призёр"},"нет","Галиева И.М.","Муниципальное бюджетное общеобразовательное учреждение \"Средняя общеобразовательная школа №7 г. Лениногорска\" ЛМР и РТ","геология"]
[11,"Саушкин","Кирилл","Андреевич","м","2007-12-20","нет",10,10,5,18,{"$f":"$L$9","v":"участник"},{"$f":"$M$12","v":"нет"},{"$f":"$N$12","v":"Галиева И.М."},"Муниципальное бюджетное общеобразовательное учреждение \"Средняя общеобразовательная школа №7 г. Лениногорска\" ЛМР и РТ",{"$f":"$P$12","v":"геология"}]
[12,"Сыркина","Дарья","Андреевна","ж","2007-03-13","нет",10,10,9,18,{"$f":"$L$15","v":"призёр"},"нет","Галиева И.М.","Муниципальное бюджетное общеобразовательное учреждение \"Средняя общеобразовательная школа №7 г. Лениногорска\" ЛМР и РТ","геология"]
[13,"Шаров","Ярослав","Константинович","м","2007-04-21","нет",10,10,9,18,{"$f":"$M$15","v":"призёр"},"призёр","Галиева И.М.","Муниципальное бюджетное общеобразовательное учреждение \"Средняя общеобразовательная школа №7 г. Лениногорска\" ЛМР и РТ","геология"]
[14,"Дмитриева","Кристина","Артемовна","ж","2008-01-19","нет",10,10,7,18,"участник",{"$f":"$M$12","v":"нет"},"Галиева И.М.","Муниципальное бюджетное общеобразовательное учреждение \"Средняя общеобразовательная школа №7 г. Лениногорска\" ЛМР и РТ","геология"]
[15,"Поникарова","Кристина","Александровна","м","2007-02-26","нет",10,10,8,18,"участник","нет","Галиева И.М.","Муниципальное бюджетное общеобразовательное учреждение \"Средняя общеобразовательная школа №7 г. Лениногорска\" ЛМР и РТ","геология"]
[16,"Андреянова","Юлия","Алексеевна","ж","2007-04-12","нет",10,10,7,18,"участник","нет","Галиева И.М.","Муниципальное бюджетное общеобразовательное учреждение \"Средняя общеобразовательная школа №7 г. Лениногорска\" ЛМР и РТ","геология"]
[17,"Кочетков","Кирилл","Александрович","м","2007-09-04","нет",10,10,7,18,"участник","нет","Галиева И.М.","Муниципальное бюджетное общеобразовательное учреждение \"Средняя общеобразовательная школа №7 г. Лениногорска\" ЛМР и РТ","геология"]